bitfinex/quotes_ETHUSD_20250611
["timestamp","ask_amount","ask_price","bid_price","bid_amount"]
[1749672123187,0.18546408,2805.4,2804.6,0.8086]
[1749672123387,12.79551325,2805.2,2805.0,0.1776]
[1749672123806,0.8194,2805.1,2804.8,0.1776]
[1749672124139,12.79551325,2805.2,2804.8,0.1776]
[1749672124636,16.56151325,2805.2,2804.8,0.1776]
[1749672125507,0.8426373,2805.1,2804.8,0.1776]
[1749672125700,16.56051325,2805.0,2804.8,0.1776]
[1749672128954,0.7957,2804.9,2803.8,0.7629]
[1749672129169,12.79551325,2804.7,2804.3,0.1776]
[1749672129348,3.759,2804.7,2804.4,0.7629]
[1749672129550,3.759,2804.7,2804.6,0.1776]
[1749672130053,3.759,2804.7,2804.1,0.7629]
[1749672130258,3.759,2804.7,2804.4,0.1776]
[1749672134142,13.55701325,2804.6,2803.6,1.36801269]
[1749672134338,12.79551325,2804.2,2803.6,1.36801269]
[1749672134544,12.79551325,2804.2,2803.6,0.7537]
[1749672135172,3.753,2804.1,2803.6,0.7537]
[1749672136568,3.753,2804.1,2803.2,1.011]
[1749672136569,12.79551325,2803.9,2803.2,1.7913]
[1749672137041,3.756,2803.8,2803.2,1.7913]
[1749672137365,0.7897,2804.7,2803.3,3.56710695]
[1749672137599,12.79551325,2804.5,2803.6,3.56677937]
[1749672137874,0.97524766,2805.0,2803.9,3.566461]
[1749672138080,0.18554766,2805.0,2804.3,0.7746]
[1749672138292,4.5517,2805.6,2804.4,0.7746]
[1749672138437,0.18551169,2805.5,2804.6,0.7746]
[1749672138859,0.18551169,2805.5,2804.8,3.5652868]
[1749672139056,0.18551169,2805.5,2805.1,3.56493529]
[1749672139263,0.18551169,2805.5,2805.0,13.564998]
[1749672139469,12.98102494,2805.5,2804.8,1.011]
[1749672139649,12.98102494,2805.5,2804.8,11.011]
[1749672139842,12.98102494,2805.5,2804.9,1.45764321]
[1749672140237,12.98102494,2805.5,2804.7,1.011]
[1749672140941,12.98102494,2805.5,2804.7,4.5763881]
[1749672141161,0.18551169,2805.5,2804.9,3.56512076]
[1749672141436,0.18551169,2805.5,2805.0,0.8202]
[1749672141659,0.18551169,2805.5,2805.4,3.56455407]
[1749672141859,0.7674,2806.3,2805.4,0.71292752]
[1749672142064,0.18549696,2805.9,2805.5,0.8202]
[1749672142372,4.5314,2806.3,2805.5,0.8202]
[1749672142674,0.18548992,2806.2,2805.5,0.8202]
[1749672143036,0.18548992,2806.2,2805.5,1.8312]
[1749672143744,0.18548992,2806.2,2805.5,5.39558525]
[1749672143952,0.18548992,2806.2,2805.6,0.53955853]
[1749672144282,0.18548992,2806.2,2806.1,0.1776]
[1749672144574,0.95288992,2806.2,2806.1,0.1776]
[1749672144784,0.95288992,2806.2,2805.9,0.1776]
[1749672144989,12.79551325,2806.1,2805.9,0.1776]
[1749672145477,12.79551325,2806.1,2805.1,0.7746]
[1749672145478,10.0,2806.0,2805.1,0.7746]
[1749672145777,10.0,2806.0,2804.4,0.35649143]
[1749672145778,12.79551325,2805.5,2805.3,0.1776]
[1749672145972,12.79551325,2805.5,2804.5,3.763]
[1749672145973,12.79551325,2805.5,2804.6,0.7746]
[1749672146175,12.79551325,2805.5,2805.1,0.1776]
[1749672147464,10.23490165,2805.6,2805.1,0.1776]
[1749672147842,3.762,2805.6,2804.8,10.0]
[1749672148047,3.762,2805.6,2805.3,0.1776]
[1749672148573,0.9977,2805.8,2805.3,0.1776]
[1749672148799,0.9977,2805.8,2804.8,13.56526125]
[1749672148800,4.5791,2805.8,2805.5,0.1776]
[1749672149240,0.8201,2805.8,2805.5,0.1776]
[1749672149441,4.5781,2805.8,2805.5,0.1776]
[1749672149740,10.84210165,2805.6,2805.5,0.1776]
[1749672149983,0.9624,2805.5,2805.0,0.1776]
[1749672150276,3.756,2805.4,2805.0,0.1776]
[1749672150802,3.756,2805.4,2805.0,0.1276]
[1749672151645,0.7848,2805.5,2804.5,4.3189761]
[1749672151841,4.5398,2805.5,2805.3,0.1776]
[1749672152083,10.9458,2805.8,2805.3,0.1776]
[1749672152284,10.05730165,2805.5,2805.3,0.1776]
[1749672152438,10.05730165,2805.5,2805.1,0.1776]
[1749672153290,4.5718,2805.4,2805.1,0.1776]
[1749672155068,4.5718,2805.4,2803.8,0.7867]
[1749672155069,10.05730165,2805.2,2803.8,0.7867]
[1749672155269,3.753,2805.1,2804.8,0.1776]
[1749672155806,10.05730165,2804.9,2804.8,0.1776]
[1749672156010,1.0011,2804.8,2804.3,0.1776]
[1749672156149,10.05730165,2804.6,2804.3,0.1776]
[1749672156349,3.755,2804.5,2804.3,0.1776]
[1749672156810,3.755,2804.5,2804.0,0.1776]
[1749672156811,0.8235,2804.4,2804.0,0.1776]
[1749672157086,0.8235,2804.4,2804.1,0.29770072]
[1749672158251,10.23490165,2804.3,2804.1,0.29770072]
[1749672160396,4.5291,2804.2,2804.1,0.29770072]
[1749672160695,4.5291,2804.2,2803.0,0.7786]
[1749672160903,4.5291,2804.2,2803.1,0.29780693]
[1749672161069,10.05730165,2804.0,2803.1,0.29780693]
[1749672161271,3.762,2803.9,2803.1,1.40544762]
[1749672161667,3.762,2803.9,2803.1,0.29780693]
[1749672162102,0.7741,2803.8,2803.1,0.29780693]
[1749672162953,0.95988911,2803.8,2803.1,0.29780693]
[1749672163261,0.18578911,2803.8,2803.1,3.86528036]
[1749672163592,0.18578911,2803.8,2803.4,3.56697292]
[1749672163934,0.7735,2804.1,2803.5,0.35669729]
[1749672164082,0.7735,2804.1,2803.2,3.56726191]
[1749672164083,0.18575156,2804.1,2803.4,13.56703397]
[1749672164284,0.18575156,2804.1,2803.5,0.812]
[1749672164485,0.7735,2804.4,2803.5,4.37891425]
[1749672164781,0.18572344,2804.2,2803.6,10.0]
[1749672165094,0.18572344,2804.2,2803.7,1.43789143]
[1749672165589,0.18572344,2804.2,2803.3,0.8173]
[1749672165757,0.18572344,2804.2,2803.3,14.38443295]
[1749672166156,0.18572344,2804.2,2803.3,0.8173]
[1749672166592,0.18572344,2804.2,2803.3,4.38446513]
[1749672166798,0.18572344,2804.2,2803.5,10.0]
[1749672166987,0.18572344,2804.2,2803.4,11.54004651]
[1749672167369,12.9965605,2804.2,2803.3,1.8333]
[1749672169970,12.9965605,2804.2,2803.3,1.016]
[1749672169971,12.81083706,2803.9,2803.3,1.016]
[1749672170291,12.81083706,2803.9,2803.5,0.1776]
[1749672170798,4.5653,2804.1,2803.3,0.1776]
[1749672170799,0.8094,2803.5,2803.3,0.1776]
[1749672172729,0.8094,2803.5,2802.5,0.8313]
[1749672172869,0.987,2803.5,2803.0,0.1776]
[1749672173170,12.81083706,2803.1,2803.0,0.1776]
[1749672174187,13.60213706,2803.1,2802.5,0.29787068]
[1749672174384,3.765,2803.0,2802.5,0.29787068]
[1749672174913,0.7913,2803.1,2802.5,0.29787068]
[1749672175985,12.81083706,2802.9,2802.5,0.29787068]
[1749672176910,12.81083706,2802.9,2801.9,13.56898376]
[1749672177093,12.81083706,2802.9,2801.9,13.86691823]
[1749672177293,12.81083706,2802.9,2802.0,3.56880117]
[1749672177495,0.7913,2803.1,2802.0,3.56887882]
[1749672177791,4.5553,2803.1,2802.1,4.74417193]
[1749672177998,4.5553,2803.1,2802.3,3.5684971]
[1749672178171,4.5553,2803.1,2802.2,3.56856216]
[1749672178367,12.81083706,2802.9,2802.1,0.38668133]
[1749672179775,12.81083706,2802.9,2801.9,1.8439]
[1749672180467,3.76,2802.8,2801.9,1.8439]
[1749672181108,3.76,2802.8,2801.7,10.0]
[1749672181109,0.7827,2802.2,2801.7,10.0]
[1749672181674,0.7827,2802.2,2801.5,0.63339015]
[1749672182020,12.81083706,2802.0,2801.5,0.93136716]
[1749672182202,12.81083706,2802.0,2801.5,0.29797701]
[1749672182401,4.542,2801.9,2801.5,0.29797701]
[1749672183793,0.781,2801.9,2801.5,0.29797701]
[1749672183980,0.781,2802.4,2801.7,3.5692433]
[1749672184209,0.781,2802.4,2801.8,0.35692433]
[1749672184411,0.781,2802.4,2802.3,0.1784]
[1749672185008,0.18586529,2802.4,2802.3,0.1784]
[1749672186423,0.18586529,2802.4,2801.1,0.04]
[1749672186424,0.7956,2802.3,2801.1,0.04]
[1749672186718,12.81083706,2801.9,2801.1,3.61001747]
[1749672186923,12.81083706,2801.9,2801.2,10.0]
[1749672187106,12.81083706,2801.9,2801.1,0.04]
[1749672187317,0.7714,2801.8,2801.1,0.04]
[1749672187683,0.7714,2801.8,2801.1,0.40102745]
[1749672188909,0.7714,2801.8,2801.1,10.40102745]
[1749672189118,0.7714,2801.8,2801.1,3.97105276]
[1749672189422,0.7714,2801.8,2801.1,0.40102745]
[1749672189827,0.7714,2801.8,2801.1,3.97103713]
[1749672189992,0.7714,2801.8,2801.2,1.39710371]
[1749672190193,0.7714,2801.8,2801.2,4.96699593]
[1749672190417,0.7714,2801.8,2801.2,1.39710371]
[1749672191802,0.7714,2801.8,2801.1,0.40102745]
[1749672194498,0.7714,2801.8,2801.1,10.40102745]
[1749672194799,0.7714,2801.8,2801.1,13.97104342]
[1749672195230,0.7714,2801.8,2801.2,3.56984141]
[1749672195444,0.7714,2801.8,2801.7,0.1784]
[1749672196535,0.7614,2801.8,2801.7,0.1784]
[1749672198135,0.18586529,2802.4,2801.7,0.1784]
[1749672198357,0.18586529,2802.4,2801.9,0.1784]
[1749672198834,0.18586529,2802.4,2802.1,0.1784]
[1749672199318,0.7701,2802.3,2802.1,0.1784]
[1749672199517,0.7701,2802.3,2801.5,0.8047]
[1749672199771,0.7701,2802.3,2801.9,0.1784]
[1749672201241,0.7701,2802.3,2801.6,11.08047]
[1749672201582,0.7701,2802.3,2802.2,0.1784]
[1749672201722,0.18586529,2802.4,2802.2,0.1784]
[1749672202074,0.7935,2803.0,2802.3,10.1784]
[1749672202251,0.7935,2803.0,2802.4,2.42794]
[1749672202438,0.7935,2803.0,2802.9,0.1776]
[1749672203464,0.7935,2803.0,2802.1,0.761]
[1749672203618,0.7935,2803.0,2801.9,4.813]
[1749672203821,10.08157423,2802.8,2802.0,10.91431167]
[1749672204109,0.7935,2802.7,2802.0,0.91431167]
[1749672204262,10.08157423,2802.5,2801.6,1.08047]
[1749672204421,13.781,2802.8,2801.4,1.032]
[1749672204422,10.08157423,2802.2,2801.4,1.032]
[1749672204625,0.7935,2802.1,2801.4,1.32998765]
[1749672204821,0.7935,2802.1,2801.5,0.29797701]
[1749672205458,0.7935,2802.1,2801.5,10.29797701]
[1749672206520,0.7935,2802.1,2801.5,13.86748831]
[1749672206777,10.0,2802.8,2801.5,13.86748831]
[1749672206778,0.7889,2802.6,2801.7,10.829]
[1749672206952,0.7889,2802.6,2801.7,14.607]
[1749672207275,10.08157423,2802.4,2801.7,10.0]
[1749672208055,0.7889,2802.5,2801.7,10.0]
[1749672208860,0.7889,2802.5,2801.7,13.56924716]
[1749672209159,0.7889,2802.8,2801.9,0.829]
[1749672209337,0.7889,2802.8,2801.9,4.613]
[1749672209535,0.7889,2802.8,2801.9,8.18198422]
[1749672209751,0.7889,2802.8,2801.9,4.613]
[1749672209947,0.7889,2802.8,2802.0,1.96879896]
[1749672210154,0.7889,2802.8,2802.0,11.96879896]
[1749672210974,0.7889,2802.8,2802.0,15.53764217]
[1749672211283,12.82258071,2802.7,2802.0,1.96879896]
[1749672211435,12.82258071,2802.7,2801.8,3.782]
[1749672211631,12.82258071,2802.4,2801.5,10.7513]
[1749672211875,0.7816,2802.3,2801.7,10.0]
[1749672212070,0.7816,2802.3,2801.7,3.78]
[1749672212432,12.82258071,2802.1,2801.0,1.032]
[1749672212637,0.8183,2802.0,2801.2,0.29800892]
[1749672212877,0.8183,2802.0,2801.2,0.79202367]
[1749672213076,0.8183,2802.0,2801.3,10.0]
[1749672213262,0.8183,2802.0,2801.4,0.29798765]
[1749672213466,0.8183,2802.0,2801.6,0.1784]
[1749672214918,12.82258071,2801.8,2801.6,0.1784]
[1749672215069,0.7889,2801.7,2801.3,0.1784]
[1749672217196,0.7889,2801.7,2801.1,0.04]
[1749672217197,0.8247,2801.3,2801.1,0.04]
[1749672217354,13.64728071,2801.2,2801.1,0.04]
[1749672217554,17.43028071,2801.2,2801.1,0.04]
[1749672218013,17.98028071,2801.2,2801.1,0.04]
[1749672218324,17.98028071,2801.2,2799.1,0.04]
[1749672218325,0.55,2800.5,2799.1,0.04]
[1749672218460,18.17823839,2799.2,2798.2,4.0556767]
[1749672218814,18.17823839,2799.2,2796.4,1.70123432]
[1749672218815,10.55,2798.2,2797.2,0.49510373]
[1749672219016,12.82258071,2797.7,2797.2,0.49510373]
[1749672219323,23.61588071,2797.3,2797.2,0.14389626]
[1749672219622,3.91063138,2797.3,2797.2,0.14389626]
[1749672219767,27.28321209,2797.3,2797.2,0.14389626]
[1749672219961,25.18579519,2797.3,2797.2,0.04389626]
[1749672220300,3.40567312,2797.3,2797.2,0.04389626]
[1749672220510,1.63481448,2797.3,2797.2,0.04389626]
[1749672220831,1.63481448,2797.3,2794.1,0.04]
[1749672220832,10.0,2797.1,2794.1,0.04]
[1749672221124,1.38503161,2795.3,2794.1,0.04]
[1749672221334,1.38503161,2795.7,2794.1,1.348]
[1749672221623,4.21154742,2795.9,2794.1,1.348]
[1749672221624,1.38503161,2795.6,2794.6,10.12829383]
[1749672221831,2.77006323,2796.3,2794.8,10.0]
[1749672221832,1.38503161,2796.1,2794.8,10.0]
[1749672221976,0.8311,2796.3,2795.1,10.0]
[1749672222344,1.38503161,2796.7,2795.2,0.8007]
[1749672222643,0.18592189,2796.3,2795.3,12.66489938]
[1749672222843,0.29719041,2796.6,2794.8,0.8231]
[1749672222975,2.23227351,2796.6,2794.8,0.8231]
[1749672223173,2.23227351,2796.6,2794.8,10.95139383]
[1749672223174,1.38503161,2796.2,2794.8,10.95139383]
[1749672223373,1.38503161,2796.1,2794.8,0.8231]
[1749672223603,1.38503161,2795.9,2794.8,0.8231]
[1749672223806,1.38503161,2795.4,2794.1,0.04]
[1749672224004,1.38503161,2794.9,2794.1,0.04]
[1749672224608,1.38503161,2794.8,2794.1,0.04]
[1749672224924,4.684,2795.3,2794.2,10.0]
[1749672224925,1.38503161,2795.1,2794.2,10.0]
[1749672225089,1.38503161,2795.5,2794.5,10.12829383]
[1749672225287,1.38503161,2795.5,2794.3,2.01682938]
[1749672225490,1.73673709,2795.5,2794.3,2.01682938]
[1749672225690,1.38503161,2795.3,2794.4,0.02905655]
[1749672225889,1.38503161,2795.1,2794.4,0.02905655]
[1749672226228,1.38503161,2794.9,2794.4,0.02905655]
[1749672226391,1.38503161,2795.0,2794.4,0.02905655]
[1749672226591,1.38503161,2795.1,2794.4,0.02905655]
[1749672226809,1.38503161,2794.9,2794.4,0.02905655]
[1749672227013,1.38503161,2795.0,2794.4,0.02905655]
[1749672227942,10.0,2795.4,2794.4,0.02905655]
[1749672227943,0.29719041,2794.9,2794.7,10.12829383]
[1749672228088,0.29719041,2794.9,2794.8,11.14112321]
[1749672228494,1.7442369,2795.6,2794.8,11.14112321]
[1749672228689,1.38503161,2795.6,2794.8,11.17017976]
[1749672229286,1.38503161,2795.7,2794.8,11.17017976]
[1749672229435,1.38503161,2795.6,2794.9,1.11701798]
[1749672229638,1.38503161,2795.7,2795.3,0.1784]
[1749672230419,1.38503161,2795.7,2794.8,0.02905655]
[1749672230617,1.56343161,2795.6,2795.1,0.1784]
[1749672230839,0.1784,2795.6,2795.1,0.1784]
[1749672231045,0.1784,2795.2,2794.8,0.02905655]
[1749672231339,6.06203161,2795.2,2794.8,0.02905655]
[1749672231508,0.1784,2795.0,2794.8,0.02905655]
[1749672231942,1.56343161,2795.0,2794.8,0.02905655]
[1749672232148,0.1784,2795.0,2794.8,0.02905655]
[1749672232837,0.81183669,2794.9,2794.8,0.02905655]
[1749672233205,3.5377683,2794.9,2794.8,0.02905655]
[1749672233407,0.7284,2794.8,2794.1,0.04]
[1749672233624,1.35271228,2794.6,2794.1,0.04]
[1749672233830,0.81183669,2794.5,2794.2,0.1784]
[1749672234007,0.1784,2794.7,2794.2,0.1784]
[1749672234209,1.35271228,2795.0,2794.1,0.04]
[1749672234210,1.10875716,2794.6,2794.1,0.04]
[1749672234430,0.29719041,2794.5,2794.4,0.1784]
[1749672235096,0.1784,2795.0,2794.4,0.1784]
[1749672235296,0.81134047,2794.9,2794.4,0.1784]
[1749672235497,0.81134047,2794.8,2794.4,0.1784]
[1749672235716,0.81134047,2794.7,2794.4,0.1784]
[1749672235916,0.1784,2795.0,2794.4,0.1784]
[1749672236112,0.81163387,2794.9,2794.4,0.1784]
[1749672236317,0.81163387,2794.8,2794.4,0.1784]
[1749672236538,0.81163387,2794.7,2794.4,0.1784]
[1749672236851,0.1784,2795.0,2794.4,0.1784]
[1749672237003,5.45991329,2794.9,2794.4,0.1784]
[1749672237206,0.81191329,2794.8,2794.4,0.1784]
[1749672237499,4.644,2795.1,2794.4,0.1784]
[1749672237701,0.81207084,2795.0,2794.4,1.20906938]
[1749672237936,0.81207084,2794.9,2794.4,1.20906938]
[1749672238149,0.81207084,2794.8,2794.4,0.1784]
[1749672238454,4.644,2795.1,2794.1,0.04]
[1749672238598,0.81254078,2795.0,2794.1,0.04]
[1749672238803,5.99671228,2795.1,2794.1,0.04]
[1749672238804,0.81254078,2794.9,2794.1,0.04]
[1749672239104,5.44654078,2794.8,2794.1,0.04]
[1749672239322,0.81254078,2794.7,2794.1,0.04]
[1749672239544,4.634,2794.8,2794.1,0.04]
[1749672239745,0.8143836,2794.7,2794.1,0.04]
[1749672239951,0.8143836,2794.6,2794.1,0.04]
[1749672240155,1.35271228,2795.1,2794.1,0.04]
[1749672240322,4.627,2794.8,2794.1,0.04]
[1749672240650,0.81439726,2794.7,2794.1,0.04]
[1749672240945,0.81439726,2794.6,2794.1,0.04]
[1749672241101,0.81439726,2794.5,2794.1,0.04]
[1749672241301,4.621,2794.8,2794.1,0.04]
[1749672241548,0.81633209,2794.7,2794.1,0.04]
[1749672241854,4.621,2794.8,2794.1,0.04]
[1749672241855,1.35271228,2794.4,2794.1,0.04]
[1749672242051,1.35271228,2794.2,2794.1,0.04]
[1749672242348,0.81633209,2794.2,2793.1,0.8031]
[1749672242554,1.36281297,2793.8,2793.2,0.23791]
[1749672242748,1.36281297,2793.4,2793.1,0.04]
[1749672243054,1.36281297,2793.2,2793.1,0.04]
[1749672243237,1.36281297,2793.2,2792.3,0.015]
[1749672243238,0.7494,2793.1,2792.3,0.015]
[1749672243445,0.7494,2793.1,2791.1,0.04]
[1749672243446,10.12829383,2792.3,2791.1,0.04]
[1749672243608,2.72696148,2791.4,2791.1,0.04]
[1749672243950,1.36602207,2791.2,2791.1,0.04]
[1749672244173,2.18222699,2791.2,2791.1,0.04]
[1749672244469,0.81633209,2791.2,2791.1,10.16829383]
[1749672244666,1.36592678,2791.9,2791.2,3.58268844]
[1749672244810,1.36592678,2792.0,2791.7,3.5819196]
[1749672245012,1.36592678,2792.2,2791.7,3.58192728]
[1749672245308,1.36592678,2792.2,2791.8,1.37102211]
[1749672245508,1.36592678,2792.2,2791.5,10.12829383]
[1749672245708,2.0490331,2792.4,2791.5,10.12829383]
[1749672245709,1.36592678,2791.9,2791.5,20.12829383]
[1749672246310,1.36592678,2791.8,2791.2,0.7631]
[1749672246508,1.36592678,2791.8,2791.2,4.34578285]
[1749672246748,1.36592678,2791.4,2791.2,0.7631]
[1749672246988,1.36592678,2791.5,2791.3,1.5694404]
[1749672247161,1.36592678,2791.5,2791.1,0.04]
[1749672247162,2.0490331,2791.5,2791.1,0.04]
[1749672247469,2.72696148,2791.2,2791.1,0.04]
[1749672247608,0.1784,2791.2,2790.5,0.1784]
[1749672247807,0.1784,2790.8,2790.1,0.04421134]
[1749672248107,2.75664752,2790.6,2790.2,3.61265151]
[1749672248334,2.75664752,2790.6,2790.4,0.1784]
[1749672248541,2.06401879,2790.8,2790.7,3.58333034]
[1749672248843,2.76061445,2791.4,2791.2,3.58257006]
[1749672249141,0.8136,2792.7,2791.1,10.7515]
[1749672249142,1.38052916,2791.8,2791.1,0.7515]
[1749672249344,1.38052916,2791.8,2791.2,10.0]
[1749672249651,1.38052916,2791.9,2791.5,10.12829383]
[1749672250031,1.38052916,2791.9,2791.3,3.08797938]
[1749672250342,2.0708897,2792.0,2791.1,0.7515]
[1749672250343,1.38052916,2791.8,2791.1,0.7515]
[1749672250528,1.38052916,2791.6,2791.1,0.7515]
[1749672250750,1.38052916,2791.5,2791.1,0.7515]
[1749672251719,1.38052916,2791.4,2790.8,0.43348303]
[1749672251918,1.38052916,2791.2,2790.9,0.2068483]
[1749672252119,1.38052916,2791.1,2790.9,0.2068483]
[1749672253159,1.38052916,2791.2,2791.0,10.12829383]
[1749672253308,1.38052916,2791.3,2790.9,0.2068483]
[1749672254011,1.38052916,2791.4,2790.9,0.2068483]
[1749672254241,1.38052916,2791.3,2790.9,0.2068483]
[1749672254444,0.7955,2791.2,2790.3,0.004189]
[1749672254678,1.3786815,2790.4,2790.3,0.004189]
[1749672254985,2.06822317,2790.5,2790.3,0.004189]
[1749672254986,1.3786815,2790.5,2790.3,0.004189]
[1749672255187,1.3786815,2790.7,2790.3,0.004189]
[1749672255353,1.3786815,2790.8,2790.3,0.004189]
[1749672255540,1.3736815,2790.7,2790.0,250.896057]
[1749672256592,0.8266624,2790.6,2790.0,250.896057]
[1749672256752,0.8266624,2790.5,2790.0,250.896057]
[1749672256957,0.8266624,2790.4,2790.1,3.61265151]
[1749672257157,0.8266624,2790.3,2790.1,3.61265151]
[1749672257336,0.8266624,2790.2,2790.1,3.61265151]
[1749672258308,2.06822317,2791.1,2790.3,3.58373388]
[1749672258579,0.8262497,2791.0,2790.4,0.35837339]
[1749672258894,0.8262497,2790.9,2790.1,13.61265151]
[1749672259045,0.8262497,2790.8,2790.6,0.1784]
[1749672259393,0.8262497,2790.7,2790.6,0.1784]
[1749672260658,0.8262497,2790.7,2790.1,3.61265151]
[1749672260860,0.8262497,2790.6,2790.4,0.1784]
[1749672261081,0.8262497,2790.5,2790.4,0.1784]
[1749672261279,0.8262497,2790.5,2790.0,250.896057]
[1749672261451,3.07287287,2790.4,2790.0,250.896057]
[1749672261656,0.8262497,2790.3,2790.1,0.1792]
[1749672261859,0.8262497,2790.2,2790.1,0.1792]
[1749672262687,4.24133166,2791.2,2790.1,3.23804681]
[1749672262688,2.06822317,2790.9,2790.1,3.23804681]
[1749672262839,2.06822317,2791.2,2790.8,3.58313426]
[1749672263042,2.75517115,2791.6,2790.8,0.1784]
[1749672263043,2.06822317,2791.6,2790.8,0.1784]
[1749672263338,0.35713773,2792.5,2791.5,0.7698]
[1749672263339,2.06822317,2791.8,2791.5,0.7698]
[1749672263537,0.29719041,2791.7,2791.5,1.42917785]
[1749672263791,0.29719041,2791.7,2791.5,1.25077785]
[1749672263942,0.29719041,2791.7,2791.6,0.1784]
[1749672264804,2.25420437,2792.4,2791.7,10.0]
[1749672264989,2.06822317,2792.5,2792.3,0.1784]
[1749672265188,2.06822317,2792.6,2792.3,0.1784]
[1749672265591,0.18594886,2792.7,2792.5,0.1784]
[1749672265765,2.06822317,2792.9,2792.5,0.1784]
[1749672265971,0.18592353,2792.9,2792.5,0.1784]
[1749672266171,0.18592353,2792.9,2792.8,0.1784]
[1749672266879,2.2541467,2792.9,2792.8,0.1784]
[1749672267311,0.18592353,2792.9,2792.8,0.1784]
[1749672267608,2.94109468,2792.9,2792.5,0.1784]
[1749672267792,2.0788138,2792.6,2792.4,11.73797853]
[1749672268116,2.0788138,2792.7,2792.4,12.91177638]
[1749672268317,2.0788138,2792.8,2792.4,16.49291794]
[1749672268503,2.0788138,2792.9,2792.6,0.1784]
[1749672268676,2.0788138,2792.8,2792.6,1.31361978]
[1749672269015,2.0788138,2792.9,2792.8,0.1784]
[1749672269373,2.0788138,2793.1,2792.9,3.58050771]
[1749672269722,2.0788138,2793.2,2793.1,3.58025133]
[1749672269879,2.0788138,2793.2,2793.0,3.5803444]
[1749672270212,2.0788138,2793.2,2793.1,0.89448456]
[1749672270387,2.0788138,2793.2,2793.1,0.1784]
[1749672270590,2.94097885,2793.6,2793.1,0.1784]
[1749672270591,2.0788138,2793.3,2793.1,0.1784]
[1749672270927,2.75517115,2793.5,2792.4,1.17379785]
[1749672271075,2.08255742,2792.7,2792.2,0.8223]
[1749672271276,2.08255742,2792.6,2792.2,0.8223]
[1749672271719,8.89083166,2793.4,2792.2,0.8223]
[1749672271720,2.08255742,2792.4,2792.2,0.8223]
[1749672271883,5.445,2793.4,2792.2,0.8223]
[1749672271884,2.08255742,2792.3,2792.2,4.40370534]
[1749672272095,2.75517115,2792.7,2792.5,3.58102059]
[1749672272096,2.08255742,2792.7,2792.5,3.58102059]
[1749672272296,2.08255742,2792.8,2792.5,15.31899912]
[1749672272497,2.08255742,2792.9,2792.5,15.31899912]
[1749672272696,2.08255742,2792.9,2792.2,17.47361014]
[1749672272697,2.08255742,2792.8,2792.6,1.53189991]
[1749672272927,2.08255742,2792.8,2792.3,11.73797853]
[1749672273145,2.08255742,2792.8,2792.4,10.0]
[1749672273369,2.08255742,2792.8,2792.6,10.13937086]
[1749672273643,2.75517115,2793.3,2792.7,10.7972]
[1749672273829,2.75517115,2793.5,2793.1,10.13937086]
[1749672273991,2.75517115,2793.6,2793.1,10.13937086]
[1749672274390,2.94099389,2793.7,2793.1,10.13937086]
[1749672274624,0.83388522,2793.6,2793.1,10.13937086]
[1749672274796,0.83388522,2793.5,2793.1,11.15330795]
[1749672275008,0.83388522,2793.4,2793.1,11.15330795]
[1749672275220,0.83388522,2793.3,2793.1,11.15330795]
[1749672275536,0.83388522,2793.2,2793.1,11.15330795]
[1749672276210,0.83388522,2793.2,2792.8,2.56085709]
[1749672276399,0.83388522,2793.1,2792.7,0.7972]
[1749672276736,0.83388522,2793.0,2792.8,10.13937086]
[1749672276933,0.18582274,2793.7,2792.8,10.13937086]
[1749672277097,0.83316551,2793.6,2792.9,1.45173337]
[1749672277299,0.83316551,2793.5,2792.9,11.45173337]
[1749672277504,0.83316551,2793.4,2792.9,11.45173337]
[1749672277735,0.18582274,2793.7,2792.9,11.45173337]
[1749672277929,0.83296878,2793.6,2793.0,2.15911042]
[1749672278101,0.83296878,2793.5,2793.0,2.15911042]
[1749672278303,0.18582274,2793.7,2793.2,10.13937086]
[1749672278499,0.8329783,2793.6,2793.2,10.13937086]
[1749672278730,0.18582274,2793.7,2793.2,10.13937086]
[1749672279242,1.62773434,2793.6,2792.3,0.7539]
[1749672279441,5.63929005,2793.5,2792.3,0.7539]
[1749672279666,0.83293434,2793.4,2792.3,0.7539]
[1749672279965,0.83293434,2793.3,2792.3,10.7539]
[1749672280263,0.83293434,2793.2,2792.3,10.7539]
[1749672280461,4.80635571,2793.5,2792.3,10.7539]
[1749672280462,4.80635571,2793.5,2792.4,12.08932709]
[1749672280664,4.80635571,2793.5,2792.4,2.08932709]
[1749672280665,0.83256249,2793.4,2792.4,2.08932709]
[1749672280885,0.1784,2792.9,2792.4,0.1784]
[1749672281324,0.83253977,2792.8,2792.4,0.1784]
[1749672281524,0.7518,2793.3,2793.2,1.21235753]
[1749672281771,1.58451372,2793.3,2793.2,1.21235753]
[1749672281953,2.22250066,2793.3,2793.2,1.21235753]
[1749672282335,1.58451372,2793.3,2793.2,1.21235753]
[1749672283258,0.7518,2793.3,2793.2,1.21235753]
[1749672283647,0.1784,2793.6,2793.2,1.21235753]
[1749672283856,0.93762274,2793.7,2793.2,1.21235753]
[1749672284040,0.93762274,2793.7,2793.3,0.1784]
[1749672285992,1.29436823,2793.7,2793.3,0.1784]
[1749672287390,0.93762274,2793.7,2793.4,0.1784]
[1749672288291,0.18582274,2793.7,2793.4,0.1784]
[1749672288701,0.1784,2793.9,2793.4,0.1784]
[1749672288994,0.1852584,2793.9,2793.4,0.1784]
[1749672289858,0.1852584,2793.9,2793.3,4.567]
[1749672290601,0.1852584,2793.9,2793.4,0.778]
[1749672291485,0.83846544,2793.8,2793.4,0.778]
[1749672291696,0.1852584,2793.9,2793.4,0.778]
[1749672292002,0.83846496,2793.8,2793.4,0.778]
[1749672292245,0.1852584,2793.9,2793.5,10.13937086]
[1749672292885,0.35004594,2794.6,2793.8,10.13937086]
[1749672293091,0.84049831,2794.5,2793.9,4.534]
[1749672293423,0.84055056,2794.4,2793.9,4.534]
[1749672293613,0.18519763,2794.7,2794.0,1.46733709]
[1749672293795,0.84048131,2794.6,2794.0,1.46733709]
[1749672294002,0.84048131,2794.5,2794.0,1.46733709]
[1749672294196,0.18519763,2794.7,2794.0,1.46733709]
[1749672294425,0.84046873,2794.6,2793.5,10.13937086]
[1749672294631,0.84046873,2794.5,2793.8,4.525]